fUST/lending_fUST_20250819
["ID","MTS","AMOUNT","RATE_DAILY","PERIOD"]
[380179180,1755594652294,-151.0,0.00020273,2]
[380179181,1755594652303,-1466.75,0.00020273,2]
[380179182,1755594652313,-2257.44,0.00020273,2]
[380179183,1755594652323,-480.0,0.00020273,2]
[380179184,1755594652333,-480.0,0.00020273,2]
[380179185,1755594652344,-480.0,0.00020273,2]
[380179186,1755594652354,-428.517852,0.00020273,2]
[380179187,1755594652363,-480.0,0.00020273,2]
[380179188,1755594652373,-428.517852,0.00020273,2]
[380179189,1755594652382,-827.65,0.00020273,2]
[380179190,1755594652392,-480.0,0.00020273,2]
[380179191,1755594652401,-760.7,0.00020273,2]
[380179192,1755594652411,-480.0,0.00020273,2]
[380179193,1755594652420,-151.0,0.00020273,2]
[380179194,1755594652430,-151.0,0.00020273,2]
[380179195,1755594652440,-616.58,0.00020273,2]
[380179196,1755594652449,-151.0,0.00020273,2]
[380179197,1755594652458,-151.0,0.00020273,2]
[380179198,1755594652468,-151.0,0.00020273,2]
[380179199,1755594652478,-151.0,0.00020273,2]
[380179200,1755594652501,-480.0,0.00020273,2]
[380179201,1755594652510,-1433.47,0.00020273,2]
[380179202,1755594652521,-779.58,0.00020273,2]
[380179203,1755594652531,-151.0,0.00020273,2]
[380179204,1755594652541,-151.0,0.00020273,2]
[380179205,1755594652551,-151.0,0.00020273,2]
[380179206,1755594652563,-189.707204,0.00020273,2]
[380179207,1755594652572,-6706.66,0.00020273,2]
[380179208,1755594652582,-480.0,0.00020273,2]
[380179209,1755594652594,-670.05,0.00020273,2]
[380179210,1755594652603,-189.707204,0.00020273,2]
[380179211,1755594652614,-1141.66,0.00020273,2]
[380179212,1755594652627,-1096.61,0.00020273,2]
[380179213,1755594652636,-549.83,0.00020273,2]
[380179214,1755594652645,-1040.36,0.00020273,2]
[380179215,1755594652654,-480.0,0.00020273,2]
[380179216,1755594652664,-480.0,0.00020273,2]
[380179217,1755594652679,-151.0,0.00020273,2]
[380179218,1755594652703,-449.18380249,0.00020273,2]
[380179219,1755594652713,-480.0,0.00020273,2]
[380179220,1755594652722,-663.94,0.00020273,2]
[380179221,1755594652732,-584.12,0.00020273,2]
[380179222,1755594652741,-708.45,0.00020273,2]
[380179223,1755594652750,-480.0,0.00020273,2]
[380179224,1755594652760,-1243.2,0.00020273,2]
[380179225,1755594652769,-151.0,0.00020273,2]
[380179226,1755594652778,-480.0,0.00020273,2]
[380179227,1755594652788,-420.0,0.00020273,2]
[380179228,1755594652797,-2041.53,0.00020273,2]
[380179229,1755594652807,-151.0,0.00020273,2]
[380179230,1755594652816,-731.69,0.00020273,2]
[380179231,1755594652835,-480.0,0.00020273,2]
[380179232,1755594652845,-151.0,0.00020273,2]
[380179233,1755594652855,-6741.79,0.00020273,2]
[380179234,1755594652864,-480.0,0.00020273,2]
[380179235,1755594652874,-482.49,0.00020273,2]
[380179236,1755594652885,-2143.73,0.00020273,2]
[380179237,1755594652895,-480.0,0.00020273,2]
[380179238,1755594652905,-480.0,0.00020273,2]
[380179239,1755594652915,-179.888096,0.00020273,2]
[380179240,1755594652924,-1416.0,0.00020273,2]
[380179241,1755594652934,-3337.57,0.00020273,2]
[380179242,1755594652943,-1014.01774321,0.00020273,2]
[380179243,1755594653081,-954.46225679,0.00020273,2]
[380179244,1755594653092,-480.0,0.00020273,2]
[380179245,1755594653102,-480.0,0.00020273,2]
[380179246,1755594653110,-920.72,0.00020273,2]
[380179247,1755594653120,-480.0,0.00020273,2]
[380179248,1755594653130,-480.0,0.00020273,2]
[380179249,1755594653140,-480.0,0.00020273,2]
[380179250,1755594653149,-1000.0,0.00020273,2]
[380179251,1755594653158,-1000.0,0.00020273,2]
[380179252,1755594653167,-1000.0,0.00020273,2]
[380179253,1755594653264,-1000.0,0.00020273,2]
[380179254,1755594653274,-1000.0,0.00020273,2]
[380179255,1755594653283,-1000.0,0.00020273,2]
[380179256,1755594653291,-1000.0,0.00020273,2]
[380179257,1755594653300,-1594.19,0.00020273,2]
[380179258,1755594653309,-1000.0,0.00020273,2]
[380179259,1755594653318,-1000.0,0.00020273,2]
[380179260,1755594653327,-1000.0,0.00020273,2]
[380179261,1755594653336,-1000.0,0.00020273,2]
[380179262,1755594653345,-490.23705647,0.00020273,2]
[380179263,1755594653355,-1000.0,0.00020273,2]
[380179264,1755594653364,-1000.0,0.00020273,2]
[380179265,1755594653375,-1000.0,0.00020273,2]
[380179266,1755594653385,-1000.0,0.00020273,2]
[380179267,1755594653395,-1000.0,0.00020273,2]
[380179268,1755594653405,-1000.0,0.00020273,2]
[380179269,1755594653414,-1000.0,0.00020273,2]
[380179270,1755594653425,-1000.0,0.00020273,2]
[380179271,1755594653435,-1000.0,0.00020273,2]
[380179272,1755594653444,-1000.0,0.00020273,2]
[380179273,1755594653453,-1000.0,0.00020273,2]
[380179274,1755594653463,-1000.0,0.00020273,2]
[380179275,1755594653472,-1000.0,0.00020273,2]
[380179276,1755594653481,-811.17,0.00020273,2]
[380179277,1755594653490,-1000.0,0.00020273,2]
[380179278,1755594653500,-1000.0,0.00020273,2]
[380179279,1755594653509,-1000.0,0.00020273,2]
[380179280,1755594653519,-1000.0,0.00020273,2]
[380179281,1755594653528,-1000.0,0.00020273,2]
[380179282,1755594653537,-211.484218,0.00020273,2]
[380179283,1755594653547,-1000.0,0.00020273,2]
[380179284,1755594653555,-1000.0,0.00020273,2]
[380179285,1755594653565,-1000.0,0.00020273,2]
[380179286,1755594653575,-1000.0,0.00020273,2]
[380179287,1755594653585,-1000.0,0.00020273,2]
[380179288,1755594653595,-760.318765,0.00020273,2]
[380179289,1755594653605,-151.0,0.00020273,2]
[380179290,1755594653614,-151.0,0.00020273,2]
[380179291,1755594653623,-211.484218,0.00020273,2]
[380179292,1755594653633,-536.157911,0.00020273,2]
[380179293,1755594653643,-850.65,0.00020273,2]
[380179294,1755594653652,-480.0,0.00020273,2]
[380179295,1755594653661,-536.157911,0.00020273,2]
[380179296,1755594653670,-740.39,0.00020273,2]
[380179297,1755594653680,-480.0,0.00020273,2]
[380179298,1755594653689,-531.76,0.00020273,2]
[380179299,1755594653698,-480.0,0.00020273,2]
[380179300,1755594653707,-480.0,0.00020273,2]
[380179301,1755594653717,-151.0,0.00020273,2]
[380179302,1755594653726,-694.13,0.00020273,2]
[380179303,1755594653736,-736.57,0.00020273,2]
[380179304,1755594653745,-509.2,0.00020273,2]
[380179305,1755594653755,-151.0,0.00020273,2]
[380179306,1755594653765,-480.0,0.00020273,2]
[380179307,1755594653774,-837.87,0.00020273,2]
[380179308,1755594653783,-480.0,0.00020273,2]
[380179309,1755594653792,-3597.33,0.00020273,2]
[380179310,1755594653801,-480.0,0.00020273,2]
[380179311,1755594653811,-2299.42,0.00020273,2]
[380179312,1755594653820,-151.0,0.00020273,2]
[380179313,1755594653829,-480.0,0.00020273,2]
[380179314,1755594653838,-480.0,0.00020273,2]
[380179315,1755594653848,-480.0,0.00020273,2]
[380179316,1755594653857,-190.993123,0.00020273,2]
[380179317,1755594653866,-480.0,0.00020273,2]
[380179318,1755594653876,-190.993123,0.00020273,2]
[380179319,1755594653885,-644.65,0.00020273,2]
[380179320,1755594653895,-875.34,0.00020273,2]
[380179321,1755594653904,-2799.63,0.00020273,2]
[380179322,1755594653914,-1306.54,0.00020273,2]
[380179323,1755594653923,-151.0,0.000203,4]
[380179324,1755594653933,-645.0,0.000203,2]
[380179325,1755594653943,-4556.89566592,0.00020313,2]
[380179326,1755594653952,-160.0,0.00020322,3]
[380179327,1755594653961,-218.47563043,0.00020322,5]
[380179328,1755594653970,-151.0,0.000204,4]
[380179329,1755594653979,-160.0,0.00020448,2]
[380179330,1755594653988,-167.73886474,0.00020493,2]
[380179331,1755594653998,-151.0,0.000205,4]
[380179332,1755594654010,-1000.0,0.00020521,2]
[380179333,1755594654020,-1000.0,0.00020521,2]
[380179334,1755594654029,-613.0,0.00020531,2]
[380179335,1755594654038,-151.0,0.00020535,2]
[380179336,1755594654048,-18502.69577858,0.00020535,2]
[380179337,1755594654058,-480.0,0.00020547,2]
[380179338,1755594654067,-480.0,0.00020547,2]
[380179339,1755594654078,-385.56212575,0.00020547,2]
[380179340,1755594654088,-501.44878262,0.00020547,2]
[380179341,1755594654098,-480.0,0.00020547,2]
[380179342,1755594654107,-480.0,0.00020547,2]
[380179343,1755594654116,-857.43,0.00020547,2]
[380179344,1755594654126,-480.0,0.00020547,2]
[380179345,1755594654136,-571.08,0.00020547,2]
[380179346,1755594654146,-480.0,0.00020547,2]
[380179347,1755594654155,-480.0,0.00020547,2]
[380179348,1755594654165,-480.0,0.00020547,2]
[380179349,1755594654175,-480.0,0.00020547,2]
[380179350,1755594654184,-151.0,0.00020547,2]
[380179351,1755594654194,-151.0,0.00020547,2]
[380179352,1755594654203,-480.0,0.00020547,2]
[380179353,1755594654212,-480.0,0.00020547,2]
[380179354,1755594654222,-151.0,0.00020547,2]
[380179355,1755594654230,-480.0,0.00020547,2]
[380179356,1755594654239,-801.13,0.00020547,2]
[380179357,1755594654249,-480.0,0.00020547,2]
[380179358,1755594654258,-151.0,0.00020547,2]
[380179359,1755594654267,-856.43,0.00020547,2]
[380179360,1755594654276,-480.0,0.00020547,2]
[380179361,1755594654285,-529.97,0.00020547,2]
[380179362,1755594654294,-480.0,0.00020547,2]
[380179363,1755594654304,-480.0,0.00020547,2]
[380179364,1755594654315,-496.03,0.00020547,2]
[380179365,1755594654325,-480.0,0.00020547,2]
[380179366,1755594654334,-180.26,0.00020547,2]
[380179367,1755594654344,-151.0,0.00020547,2]
[380179368,1755594654353,-151.0,0.00020547,2]
[380179369,1755594654363,-265.456392,0.00020547,2]
[380179370,1755594654372,-265.456392,0.00020547,2]
[380179371,1755594654381,-656.89,0.00020547,2]
[380179372,1755594654402,-480.0,0.00020547,2]
[380179373,1755594654412,-1162.25,0.00020547,2]
[380179374,1755594654421,-480.0,0.00020547,2]
[380179375,1755594654430,-151.0,0.00020547,2]
[380179376,1755594654439,-666.47,0.00020547,2]
[380179377,1755594654450,-258.391223,0.00020547,2]
[380179378,1755594654459,-480.0,0.00020547,2]
[380179379,1755594654468,-151.0,0.00020547,2]
[380179380,1755594654477,-151.0,0.00020547,2]
[380179381,1755594654486,-258.391223,0.00020547,2]
[380179382,1755594654495,-151.0,0.00020547,2]
[380179383,1755594654504,-163.212059,0.00020547,2]
[380179384,1755594654514,-487.08217191,0.00020547,2]
[380179385,1755594654524,-163.212059,0.00020547,2]
[380179386,1755594654534,-480.0,0.00020547,2]
[380179387,1755594654543,-480.0,0.00020547,2]
[380179388,1755594654553,-1466.75,0.00020547,2]
[380179389,1755594654562,-2257.44,0.00020547,2]
[380179390,1755594654572,-480.0,0.00020547,2]
[380179391,1755594654581,-480.0,0.00020547,2]
[380179392,1755594654590,-428.517852,0.00020547,2]
[380179393,1755594654600,-593.05,0.00020547,2]
[380179394,1755594654610,-428.517852,0.00020547,2]
[380179395,1755594654619,-827.65,0.00020547,2]
[380179396,1755594654628,-760.7,0.00020547,2]
[380179397,1755594654638,-151.0,0.00020547,2]
[380179398,1755594654647,-151.0,0.00020547,2]
[380179399,1755594654656,-616.58,0.00020547,2]
[380179400,1755594654666,-151.0,0.00020547,2]
[380179401,1755594654675,-151.0,0.00020547,2]
[380179402,1755594654685,-151.0,0.00020547,2]
[380179403,1755594654694,-151.0,0.00020547,2]
[380179404,1755594654705,-480.0,0.00020547,2]
[380179405,1755594654715,-1433.47,0.00020547,2]
[380179406,1755594654725,-779.58,0.00020547,2]
[380179407,1755594654735,-151.0,0.00020547,2]
[380179408,1755594654744,-151.0,0.00020547,2]
[380179409,1755594654753,-151.0,0.00020547,2]
[380179410,1755594654763,-189.707204,0.00020547,2]
[380179411,1755594654772,-6706.66,0.00020547,2]
[380179412,1755594654781,-670.05,0.00020547,2]
[380179413,1755594654790,-480.0,0.00020547,2]
[380179414,1755594654800,-189.707204,0.00020547,2]
[380179415,1755594654810,-1141.66,0.00020547,2]
[380179416,1755594654820,-1096.61,0.00020547,2]
[380179417,1755594654830,-549.83,0.00020547,2]
[380179418,1755594654840,-1040.36,0.00020547,2]
[380179419,1755594654851,-480.0,0.00020547,2]
[380179420,1755594654862,-480.0,0.00020547,2]
[380179421,1755594654878,-151.0,0.00020547,2]
[380179422,1755594654898,-445.74969757,0.00020547,2]
[380179423,1755594654917,-663.94,0.00020547,2]
[380179424,1755594654936,-584.12,0.00020547,2]
[380179425,1755594654947,-708.45,0.00020547,2]
[380179426,1755594654956,-480.0,0.00020547,2]
[380179427,1755594654965,-1243.2,0.00020547,2]
[380179428,1755594654975,-151.0,0.00020547,2]
[380179429,1755594654984,-480.0,0.00020547,2]
[380179430,1755594654993,-2041.53,0.00020547,2]
[380179431,1755594655006,-151.0,0.00020547,2]
[380179432,1755594655015,-731.69,0.00020547,2]
[380179433,1755594655024,-480.0,0.00020547,2]
[380179434,1755594655103,-151.0,0.00020547,2]
[380179435,1755594655124,-6741.79,0.00020547,2]
[380179436,1755594655134,-482.49,0.00020547,2]
[380179437,1755594655143,-2143.73,0.00020547,2]
[380179438,1755594655152,-480.0,0.00020547,2]
[380179439,1755594655161,-480.0,0.00020547,2]
[380179440,1755594655171,-1416.0,0.00020547,2]
[380179441,1755594655179,-3337.57,0.00020547,2]
[380179442,1755594655188,-1968.48,0.00020547,2]
[380179443,1755594655197,-480.0,0.00020547,2]
[380179444,1755594655207,-480.0,0.00020547,2]
[380179445,1755594655216,-920.72,0.00020547,2]
[380179446,1755594655225,-440.0,0.00020547,2]
[380179447,1755594655234,-486.06634239,0.00020547,2]
[380179448,1755594655242,-364.42090735,0.00020547,2]
[380179449,1755594655251,-1594.19,0.00020547,2]
[380179450,1755594655260,-811.17,0.00020547,2]
[380179451,1755594655270,-211.484218,0.00020547,2]
[380179452,1755594655280,-151.0,0.00020547,2]
[380179453,1755594655289,-211.484218,0.00020547,2]
[380179454,1755594655298,-536.157911,0.00020547,2]
[380179455,1755594655308,-850.65,0.00020547,2]
[380179456,1755594655319,-480.0,0.00020547,2]
[380179457,1755594655328,-740.39,0.00020547,2]
[380179458,1755594655337,-480.0,0.00020547,2]
[380179459,1755594655347,-531.76,0.00020547,2]
[380179460,1755594655356,-480.0,0.00020547,2]
[380179461,1755594655365,-151.0,0.00020547,2]
[380179462,1755594655374,-694.13,0.00020547,2]
[380179463,1755594655384,-736.57,0.00020547,2]
[380179464,1755594655393,-509.2,0.00020547,2]
[380179465,1755594655402,-151.0,0.00020547,2]
[380179466,1755594655411,-480.0,0.00020547,2]
[380179467,1755594655421,-837.87,0.00020547,2]
[380179468,1755594655432,-480.0,0.00020547,2]
[380179469,1755594655443,-3597.33,0.00020547,2]
[380179470,1755594655454,-480.0,0.00020547,2]
[380179471,1755594655465,-2299.42,0.00020547,2]
[380179472,1755594655475,-151.0,0.00020547,2]
[380179473,1755594655484,-480.0,0.00020547,2]
[380179474,1755594655492,-480.0,0.00020547,2]
[380179475,1755594655501,-480.0,0.00020547,2]
[380179476,1755594655511,-190.993123,0.00020547,2]
[380179477,1755594655520,-480.0,0.00020547,2]
[380179478,1755594655529,-190.993123,0.00020547,2]
[380179479,1755594655538,-644.65,0.00020547,2]
[380179480,1755594655548,-875.34,0.00020547,2]
[380179481,1755594655558,-2799.63,0.00020547,2]
[380179482,1755594655567,-1306.54,0.00020547,2]
[380179483,1755594655576,-47659.87465226,0.00020547,2]
[380179484,1755594655585,-151.0,0.00020548,2]
[380179485,1755594655594,-151.0,0.00020548,2]
[380179486,1755594655603,-198.69854472,0.00020548,2]
[380179487,1755594655612,-151.0,0.00020548,2]
[380179488,1755594655621,-151.0,0.00020548,2]
[380179489,1755594655631,-151.0,0.00020548,2]
[380179490,1755594655640,-151.0,0.00020548,2]
[380179491,1755594655650,-151.38080728,0.00020548,2]
[380179492,1755594655659,-282.83433387,0.00020548,2]
[380179493,1755594655667,-198.0,0.00020548,2]
[380179494,1755594655676,-151.0,0.00020548,2]
[380179495,1755594655686,-32.59533851,0.00020548,2]
[380179496,1755594655701,-118.40466149,0.00020548,2]
[380179497,1755594655710,-151.0,0.00020548,2]
[380179498,1755594655719,-151.0,0.00020548,2]
[380179499,1755594655728,-41.58033851,0.00020548,2]
[380179500,1755594656259,-480.0,0.00019178,2]
[380179501,1755594656269,-480.0,0.00019178,2]
[380179502,1755594656278,-540.60243865,0.00019178,2]
[380179503,1755594656288,-480.0,0.00019452,2]
[380179504,1755594656297,-480.0,0.00019452,2]
[380179505,1755594656308,-115.40479823,0.00020548,2]
[380179506,1755594656319,-151.0,0.00020548,2]
[380179507,1755594656330,-500.0,0.00020548,2]
[380179508,1755594656340,-151.0,0.00020548,2]
[380179509,1755594656351,-151.0,0.00020548,2]
[380179510,1755594656360,-151.0,0.00020548,2]
[380179511,1755594656371,-151.0,0.00020548,2]
[380179512,1755594656382,-151.0,0.00020548,2]
[380179513,1755594656391,-274.61915624,0.00020548,2]
[380179514,1755594656400,-151.0,0.00020548,2]
[380179515,1755594656408,-151.0,0.00020548,2]
[380179516,1755594656418,-1500.0,0.00020568,2]
[380179517,1755594656429,-1003.9280423,0.00020568,2]
[380179518,1755594656439,-1584.59953515,0.00020568,2]
[380179519,1755594656448,-613.0,0.00020572,2]
[380179520,1755594656457,-158.67083224,0.00020573,2]
[380179521,1755594656468,-500.0,0.00020573,2]
[380179522,1755594656479,-500.0,0.00020573,2]
[380179523,1755594656488,-500.81789606,0.00020573,2]
[380179524,1755594656498,-500.0,0.00020573,2]
[380179525,1755594656507,-500.0,0.00020573,2]
[380179526,1755594656517,-500.0,0.00020573,2]
[380179527,1755594656526,-500.0,0.00020573,2]
[380179528,1755594656534,-500.0,0.00020573,2]
[380179529,1755594656543,-500.0,0.00020573,2]
[380179530,1755594656554,-504.47468347,0.00020573,2]
[380179531,1755594656564,-500.0,0.00020573,2]
[380179532,1755594656574,-55.06134321,0.00020573,2]
[380179533,1755594656590,-446.16130638,0.00020573,2]
[380179534,1755594656600,-270.2092694,0.00020583,2]
[380179535,1755594656609,-151.0,0.000206,3]
[380179536,1755594656618,-613.0,0.00020621,2]
[380179537,1755594656628,-540.88,0.00020679,2]
[380179538,1755594656638,-527.76858949,0.00020683,2]
[380179539,1755594713332,163.275612,0.00013699,2]
[380179540,1755594731900,297.48462801,0.00019016,2]
[380179541,1755594749206,1320.11361394,0.00019078,2]
[380179542,1755594854639,154.27573977,0.00019,2]
[380179543,1755594854662,5000.0,0.00019,2]
[380179544,1755594854684,5000.0,0.00019,2]
[380179545,1755594854705,1229.87426023,0.00019,2]
[380179553,1755594903154,464.19746327,0.0001861,2]
[380179559,1755594949522,1375.11834786,0.00019078,2]
[380179561,1755595105260,221.27896971,0.00019078,2]
[380179562,1755595161686,1203.22855436,0.00019078,2]
[380179563,1755595236879,302.51602579,0.00018964,2]
[380179564,1755595272823,203.78637878,0.00018656,2]
[380179565,1755595272846,296.21362122,0.00018656,2]
[380179566,1755595277646,500.0,0.00018619,2]
[380179567,1755595282214,500.0,0.00018619,2]
[380179568,1755595286829,500.0,0.00018619,2]
[380179570,1755595354997,302.51602579,0.000189,2]
[380179571,1755595380435,1052.8249851,0.00019078,2]
[380179572,1755595390542,500.0,0.00027945,120]
[380179573,1755595390783,460.0,0.00027945,120]
[380179574,1755595437828,165.95922729,0.00019078,2]
[380179575,1755595596304,979.84968261,0.00019078,2]
[380179576,1755595617082,262.2443286,0.00018603,2]
[380179577,1755595620447,188.370761,0.00018222,2]
[380179578,1755595631093,-160.0,0.00019165,2]
[380179579,1755595631115,-472.36534742,0.00019165,2]
[380179582,1755595721705,252.02136839,0.00019,2]
[380179583,1755595721726,445.82239258,0.00019,2]
[380179584,1755595731313,4554.17760742,0.00018,2]
[380179585,1755595731335,5000.0,0.00018,2]
[380179586,1755595731357,5000.0,0.00018,2]
[380179587,1755595731377,5000.0,0.00018,2]
[380179588,1755595731403,5000.0,0.00018,2]
[380179589,1755595731425,5000.0,0.00018,2]
[380179590,1755595731557,5000.0,0.00018,2]
[380179591,1755595731578,5000.0,0.00018,2]
[380179592,1755595731599,5000.0,0.00018,2]
[380179593,1755595731621,5000.0,0.00018,2]
[380179594,1755595731642,5000.0,0.00018,2]
[380179595,1755595731663,5000.0,0.00018,2]
[380179596,1755595731683,5000.0,0.00018,2]
[380179597,1755595731706,5000.0,0.00018,2]
[380179598,1755595731727,5000.0,0.00018,2]
[380179599,1755595731748,5000.0,0.00018,2]
[380179600,1755595731768,5000.0,0.00018,2]
[380179601,1755595731788,5000.0,0.00018,2]
[380179602,1755595731808,5000.0,0.00018,2]
[380179603,1755595731829,5000.0,0.00018,2]
[380179604,1755595731850,5000.0,0.00018,2]
[380179605,1755595731871,4473.23154976,0.00018,2]
[380179606,1755595774118,165.95922728,0.00019078,2]
[380179625,1755595804672,360.80922296,0.00019078,2]
[380179626,1755595804697,496.55924935,0.00019078,2]
[380179627,1755595821011,1000.0,0.00018322,2]
[380179645,1755595831740,-262.58041745,0.00019165,2]
[380179842,1755595837715,-36.41958255,0.00019165,2]
[380179843,1755595837724,-300.0,0.00019165,2]
[380179844,1755595837733,-1200.0,0.00019165,2]
[380179845,1755595837742,-1000.0,0.00019166,2]
[380179846,1755595837751,-1114.0,0.00019166,2]
[380179847,1755595837760,-73.82367093,0.00019166,2]
[380179848,1755595837771,-77.17632907,0.00019166,2]
[380179849,1755595837779,-923.82365683,0.00019166,2]
[380179850,1755595837794,-16918.69879117,0.00019166,2]
[380179851,1755595837803,-169.49397504,0.00019174,2]
[380179852,1755595837812,-480.0,0.00019178,2]
[380179853,1755595837821,-480.0,0.00019178,2]
[380179855,1755595837830,-480.0,0.00019178,2]
[380179856,1755595837840,-420.0,0.00019178,2]
[380179858,1755595837849,-480.0,0.00019178,2]
[380179860,1755595837858,-460.0,0.00019178,2]
[380179862,1755595837867,-480.0,0.00019178,2]
[380179864,1755595837877,-480.0,0.00019178,2]
[380179866,1755595837887,-480.0,0.00019178,2]
[380179868,1755595837896,-480.0,0.00019178,2]
[380179870,1755595837905,-480.0,0.00019178,2]
[380179872,1755595837914,-182.42586438,0.00019178,2]
[380179874,1755595837923,-480.0,0.00019178,2]
[380179876,1755595837933,-480.0,0.00019178,2]
[380179878,1755595837942,-480.0,0.00019178,2]
[380179880,1755595837952,-482.15648392,0.00019178,2]
[380179882,1755595837961,-480.0,0.00019178,2]
[380179883,1755595837970,-480.0,0.00019178,2]
[380179885,1755595837979,-480.0,0.00019178,2]
[380179887,1755595837989,-480.0,0.00019178,2]
[380179889,1755595837998,-480.0,0.00019178,2]
[380179891,1755595838007,-480.0,0.00019178,2]
[380179892,1755595838016,-480.0,0.00019178,2]
[380179893,1755595838025,-480.0,0.00019178,2]
[380179894,1755595838034,-480.0,0.00019178,2]
[380179895,1755595838043,-480.0,0.00019178,2]
[380179896,1755595838052,-483.85675554,0.00019178,2]
[380179897,1755595838062,-480.0,0.00019178,2]
[380179898,1755595838071,-480.0,0.00019178,2]
[380179899,1755595838080,-273.14724219,0.00019178,2]
[380179900,1755595838089,-232.26099601,0.00019178,2]
[380179901,1755595838099,-480.0,0.00019178,2]
[380179902,1755595838108,-480.0,0.00019178,2]
[380179903,1755595838118,-480.0,0.00019178,2]
[380179904,1755595838127,-157.57913033,0.00019178,2]
[380179906,1755595838136,-480.0,0.00019178,2]
[380179908,1755595838145,-423.47,0.00019178,2]
[380179910,1755595838154,-480.0,0.00019178,2]
[380179911,1755595838163,-480.0,0.00019178,2]
[380179913,1755595838172,-480.0,0.00019178,2]
[380179914,1755595838182,-333.93388308,0.00019178,2]
[380179915,1755595838192,-415.61366461,0.00019178,2]
[380179916,1755595838201,-480.0,0.00019178,2]
[380179918,1755595838210,-320.0,0.00019178,2]
[380179920,1755595838219,-480.0,0.00019178,2]
[380179922,1755595838229,-480.0,0.00019178,2]
[380179924,1755595838238,-480.0,0.00019178,2]
[380179926,1755595838247,-480.0,0.00019178,2]
[380179928,1755595838256,-271.15478048,0.00019178,2]
[380179929,1755595838265,-480.0,0.00019178,2]
[380179930,1755595838274,-480.0,0.00019178,2]
[380179931,1755595838283,-480.0,0.00019178,2]
[380179932,1755595838293,-480.0,0.00019178,2]
[380179933,1755595838302,-480.0,0.00019178,2]
[380179934,1755595838311,-480.0,0.00019178,2]
[380179935,1755595838320,-481.59678007,0.00019178,2]
[380179936,1755595838329,-480.0,0.00019178,2]
[380179937,1755595838338,-480.0,0.00019178,2]
[380179938,1755595838346,-480.0,0.00019178,2]
[380179939,1755595838356,-303.10018812,0.00019178,2]
[380179940,1755595838365,-480.0,0.00019178,2]
[380179941,1755595838374,-500.0,0.00019178,2]
[380179942,1755595838383,-500.0,0.00019178,2]
[380179943,1755595838392,-500.0,0.00019178,2]
[380179944,1755595838401,-480.0,0.00019178,2]
[380179945,1755595838413,-480.0,0.00019178,2]
[380179946,1755595838423,-480.0,0.00019178,2]
[380179947,1755595838434,-480.0,0.00019178,2]
[380179948,1755595838443,-480.0,0.00019178,2]
[380179949,1755595838453,-480.0,0.00019178,2]
[380179950,1755595838462,-480.0,0.00019178,2]
[380179951,1755595838471,-480.0,0.00019178,2]
[380179952,1755595838480,-480.0,0.00019178,2]
[380179953,1755595838491,-480.0,0.00019178,2]
[380179954,1755595838500,-480.0,0.00019178,2]